fUST/lending_fUST_20250403
["ID","MTS","AMOUNT","RATE_DAILY","PERIOD"]
[357055893,1743660690511,152.65,0.000249,31]
[357055894,1743660690711,152.65,0.000249,31]
[357055895,1743660690754,152.65,0.000249,31]
[357055896,1743660690805,152.65,0.000249,31]
[357055898,1743661153764,506.1753759,0.000249,31]
[357055899,1743661293358,152.68,0.000249,31]
[357055900,1743661293404,152.68,0.000249,31]
[357055901,1743661293451,152.68,0.000249,31]
[357055902,1743661293517,152.68,0.000249,31]
[357055903,1743661293576,152.68,0.000249,31]
[357055904,1743661293638,152.68,0.000249,31]
[357055905,1743661293708,152.68,0.000249,31]
[357055906,1743661293775,152.68,0.000249,31]
[357055907,1743661293832,152.68,0.000249,31]
[357055916,1743661657777,2000.0,0.00025,30]
[357055957,1743661838434,-315.91283162,0.00018118,2]
[357055958,1743661838512,-13.32421738,0.00018118,2]
[357055959,1743661838523,-199.81012916,0.00018898,2]
[357055960,1743661838533,-855.28469242,0.00018898,2]
[357055961,1743661838542,-300.0,0.00018996,2]
[357055962,1743661838551,-500.0,0.00018997,2]
[357055963,1743661838561,-500.0,0.00018997,2]
[357055964,1743661838570,-500.0,0.00018997,2]
[357055965,1743661838580,-500.0,0.00018997,2]
[357055966,1743661838589,-500.0,0.00018997,2]
[357055967,1743661838599,-500.0,0.00018997,2]
[357055968,1743661838607,-500.0,0.00018997,2]
[357055969,1743661838617,-439.50474663,0.00018997,2]
[357055970,1743661838627,-500.0,0.00018997,2]
[357055971,1743661838636,-250.0,0.00018997,2]
[357055972,1743661838645,-500.0,0.00018997,2]
[357055973,1743661838655,-500.0,0.00018997,2]
[357055974,1743661838665,-500.0,0.00018997,2]
[357055975,1743661838674,-500.0,0.00018997,2]
[357055976,1743661838684,-500.0,0.00018997,2]
[357055977,1743661838694,-500.0,0.00018997,2]
[357055978,1743661838702,-500.0,0.00018997,2]
[357055979,1743661838712,-649.68,0.00018997,2]
[357055980,1743661838721,-500.0,0.00018997,2]
[357055981,1743661838731,-175.22506353,0.00018998,2]
[357055982,1743661838742,-324.76441851,0.00018998,2]
[357055983,1743661838751,-507.7588309,0.00018998,2]
[357055984,1743661838761,-508.30079573,0.00018998,2]
[357055985,1743661838770,-505.42765208,0.00018998,2]
[357055986,1743661838779,-520.33360823,0.00018998,2]
[357055987,1743661838789,-541.37268259,0.00018998,2]
[357055988,1743661838799,-527.83687305,0.00018998,2]
[357055989,1743661838808,-525.54868959,0.00018998,2]
[357055990,1743661838817,-511.52860164,0.00018998,2]
[357055991,1743661838827,-34.70814625,0.00018998,2]
[357055992,1743661838840,-263.01070287,0.00018998,2]
[357055993,1743661838850,-520.10375684,0.00018998,2]
[357055994,1743661838862,-639.40534555,0.00018998,2]
[357055995,1743661838872,-348.00150512,0.00018998,2]
[357055996,1743661838882,-518.68896956,0.00018998,2]
[357055997,1743661838891,-545.55996554,0.00018998,2]
[357055998,1743661838902,-513.45525446,0.00018998,2]
[357055999,1743661838912,-517.88813889,0.00018998,2]
[357056000,1743661838921,-514.90697895,0.00018998,2]
[357056001,1743661838932,-517.18589825,0.00018998,2]
[357056002,1743661838942,-628.25617949,0.00018998,2]
[357056003,1743661838951,-500.0,0.00018998,2]
[357056004,1743661838961,-518.30624918,0.00018998,2]
[357056005,1743661838970,-535.6005632,0.00018998,2]
[357056006,1743661838980,-517.97033919,0.00018998,2]
[357056007,1743661838989,-500.0,0.00018998,2]
[357056008,1743661838999,-500.0,0.00018998,2]
[357056009,1743661839008,-518.49953593,0.00018998,2]
[357056010,1743661839018,-512.55038887,0.00018998,2]
[357056011,1743661839027,-514.19111284,0.00018998,2]
[357056012,1743661839037,-504.03984769,0.00018998,2]
[357056013,1743661839047,-504.85731064,0.00018998,2]
[357056014,1743661839056,-508.29931856,0.00018998,2]
[357056015,1743661839066,-500.0,0.00018998,2]
[357056016,1743661839076,-519.06873392,0.00018998,2]
[357056017,1743661839085,-500.0,0.00018998,2]
[357056018,1743661839095,-507.35785494,0.00018998,2]
[357056019,1743661839105,-521.27811397,0.00018998,2]
[357056020,1743661839115,-515.93776914,0.00018998,2]
[357056021,1743661839124,-504.20079681,0.00018998,2]
[357056022,1743661839133,-526.11095153,0.00018998,2]
[357056023,1743661839143,-503.01598583,0.00018998,2]
[357056024,1743661839152,-521.64962547,0.00018998,2]
[357056025,1743661839162,-509.22640067,0.00018998,2]
[357056026,1743661839171,-502.22692793,0.00018998,2]
[357056027,1743661839180,-503.27946724,0.00018998,2]
[357056028,1743661839189,-502.35607084,0.00018998,2]
[357056029,1743661839199,-515.34370835,0.00018998,2]
[357056030,1743661839209,-509.20984726,0.00018998,2]
[357056031,1743661839218,-504.14858179,0.00018998,2]
[357056032,1743661839227,-505.09351641,0.00018998,2]
[357056033,1743661839237,-510.65463999,0.00018998,2]
[357056034,1743661839246,-505.60769884,0.00018998,2]
[357056035,1743661839255,-505.00211361,0.00018998,2]
[357056036,1743661839265,-500.0,0.00018998,2]
[357056037,1743661839274,-503.00707583,0.00018998,2]
[357056038,1743661839284,-500.0,0.00018998,2]
[357056039,1743661839293,-199.92059502,0.00018998,2]
[357056040,1743661839303,-552.02997311,0.00018998,2]
[357056041,1743661839313,-500.0,0.00018998,2]
[357056042,1743661839327,-505.05835741,0.00018998,2]
[357056043,1743661839337,-501.88603181,0.00018998,2]
[357056044,1743661839346,-500.0,0.00018998,2]
[357056045,1743661839355,-503.57692276,0.00018998,2]
[357056046,1743661839366,-500.0,0.00018998,2]
[357056047,1743661839375,-500.0,0.00018998,2]
[357056048,1743661839385,-503.11523078,0.00018998,2]
[357056049,1743661839394,-500.0,0.00018998,2]
[357056050,1743661839404,-500.0,0.00018998,2]
[357056051,1743661839414,-500.0,0.00018998,2]
[357056052,1743661839423,-529.53354501,0.00018998,2]
[357056053,1743661839433,-508.53605765,0.00018998,2]
[357056054,1743661839447,-500.0,0.00018998,2]
[357056055,1743661839457,-508.31424356,0.00018998,2]
[357056056,1743661839466,-637.45,0.00018998,2]
[357056057,1743661839475,-509.29913028,0.00018998,2]
[357056058,1743661839484,-513.24799339,0.00018998,2]
[357056059,1743661839494,-522.99188244,0.00018998,2]
[357056060,1743661839503,-502.12544635,0.00018998,2]
[357056061,1743661839513,-500.0,0.00018998,2]
[357056062,1743661839522,-500.0,0.00018998,2]
[357056063,1743661839531,-582.05579231,0.00018998,2]
[357056064,1743661839540,-505.52623682,0.00018998,2]
[357056065,1743661839549,-507.50993847,0.00018998,2]
[357056066,1743661839558,-503.9623755,0.00018998,2]
[357056067,1743661839567,-397.82228874,0.00018998,2]
[357056068,1743661839580,-501.66753882,0.00018998,2]
[357056069,1743661839590,-505.84659456,0.00018998,2]
[357056070,1743661839599,-500.0,0.00018998,2]
[357056071,1743661839608,-510.9441653,0.00018998,2]
[357056072,1743661839618,-506.4984245,0.00018998,2]
[357056073,1743661839627,-501.7569315,0.00018998,2]
[357056074,1743661839637,-504.81852988,0.00018998,2]
[357056075,1743661839646,-387.69989648,0.00018998,2]
[357056076,1743661839656,-512.53403774,0.00018998,2]
[357056077,1743661839666,-505.90813079,0.00018998,2]
[357056078,1743661839675,-511.4995915,0.00018998,2]
[357056079,1743661839684,-504.61126952,0.00018998,2]
[357056080,1743661839693,-610.24270717,0.00018998,2]
[357056081,1743661839702,-500.0,0.00018998,2]
[357056082,1743661839712,-504.93343716,0.00018998,2]
[357056083,1743661839722,-503.92751363,0.00018998,2]
[357056084,1743661839731,-508.83252144,0.00018998,2]
[357056085,1743661839740,-508.60959522,0.00018998,2]
[357056086,1743661839750,-275.609487,0.00018998,2]
[357056087,1743661839760,-275.609487,0.00018998,2]
[357056088,1743661839772,-275.609487,0.00018998,2]
[357056089,1743661839782,-275.609487,0.00018998,2]
[357056090,1743661839791,-643.63252958,0.00018998,2]
[357056091,1743661839801,-505.07299365,0.00018998,2]
[357056092,1743661839810,-503.22899129,0.00018998,2]
[357056093,1743661839823,-500.0,0.00018998,2]
[357056094,1743661839833,-505.0046955,0.00018998,2]
[357056095,1743661839842,-565.42728634,0.00018998,2]
[357056096,1743661839851,-505.81540499,0.00018998,2]
[357056097,1743661839864,-284.2429209,0.00018998,2]
[357056098,1743661839874,-503.31247891,0.00018998,2]
[357056099,1743661839883,-170.722671,0.00018998,2]
[357056100,1743661839893,-508.81929855,0.00018998,2]
[357056101,1743661839903,-514.2525192,0.00018998,2]
[357056102,1743661839912,-642.60719289,0.00018998,2]
[357056103,1743661839922,-500.0,0.00018998,2]
[357056104,1743661839931,-504.0084658,0.00018998,2]
[357056105,1743661839943,-500.0,0.00018998,2]
[357056106,1743661839953,-500.0,0.00018998,2]
[357056107,1743661839964,-500.0,0.00018998,2]
[357056109,1743661839974,-500.0,0.00018998,2]
[357056110,1743661839984,-500.0,0.00018998,2]
[357056111,1743661839993,-529.49184291,0.00018998,2]
[357056113,1743661840002,-502.06377352,0.00018998,2]
[357056115,1743661840012,-510.62746261,0.00018998,2]
[357056117,1743661840021,-504.10627716,0.00018998,2]
[357056119,1743661840031,-516.86359169,0.00018998,2]
[357056120,1743661840041,-516.71009627,0.00018998,2]
[357056121,1743661840050,-151.0,0.00018998,2]
[357056122,1743661840059,-151.0,0.00018998,2]
[357056123,1743661840071,-501.62000619,0.00018998,2]
[357056126,1743661840091,-533.29,0.00018998,2]
[357056127,1743661840100,-599.94,0.00018998,2]
[357056128,1743661840110,-507.63048027,0.00018998,2]
[357056129,1743661840120,-151.0,0.00018998,2]
[357056130,1743661840129,-151.0,0.00018998,2]
[357056131,1743661840139,-151.0,0.00018998,2]
[357056132,1743661840148,-500.0,0.00018998,2]
[357056133,1743661840158,-500.0,0.00018998,2]
[357056134,1743661840168,-500.0,0.00018998,2]
[357056135,1743661840177,-514.76098242,0.00018998,2]
[357056136,1743661840187,-500.0,0.00018998,2]
[357056137,1743661840197,-481.38141654,0.00018998,2]
[357056138,1743661840206,-500.0,0.00018998,2]
[357056139,1743661840216,-500.0,0.00018998,2]
[357056140,1743661840225,-151.0,0.00018998,2]
[357056141,1743661840235,-151.0,0.00018998,2]
[357056142,1743661840245,-500.0,0.00018998,2]
[357056143,1743661840254,-151.0,0.00018998,2]
[357056144,1743661840264,-529.75477263,0.00018998,2]
[357056145,1743661840274,-519.98168344,0.00018998,2]
[357056146,1743661840284,-500.0,0.00018998,2]
[357056147,1743661840294,-500.0,0.00018998,2]
[357056148,1743661840303,-520.82568462,0.00018998,2]
[357056149,1743661840313,-500.0,0.00018998,2]
[357056151,1743661840324,-500.0,0.00018998,2]
[357056152,1743661840333,-515.23892855,0.00018998,2]
[357056154,1743661840344,-512.20184901,0.00018998,2]
[357056155,1743661840354,-546.10055,0.00018998,2]
[357056156,1743661840364,-546.10055,0.00018998,2]
[357056157,1743661840374,-546.10055,0.00018998,2]
[357056158,1743661840384,-546.10055,0.00018998,2]
[357056159,1743661840394,-500.0,0.00018998,2]
[357056160,1743661840404,-546.10055,0.00018998,2]
[357056161,1743661840413,-546.10055,0.00018998,2]
[357056162,1743661840423,-546.10055,0.00018998,2]
[357056163,1743661840432,-500.0,0.00018998,2]
[357056164,1743661840442,-546.10055,0.00018998,2]
[357056165,1743661840451,-500.0,0.00018998,2]
[357056166,1743661840461,-522.01805886,0.00018998,2]
[357056167,1743661840472,-500.0,0.00018998,2]
[357056168,1743661840482,-512.98461001,0.00018998,2]
[357056169,1743661840492,-500.0,0.00018998,2]
[357056170,1743661840502,-529.58484659,0.00018998,2]
[357056171,1743661840511,-151.0,0.00018998,2]
[357056172,1743661840521,-151.0,0.00018998,2]
[357056173,1743661840531,-151.0,0.00018998,2]
[357056174,1743661840541,-151.0,0.00018998,2]
[357056175,1743661840550,-523.81938451,0.00018998,2]
[357056176,1743661840559,-500.0,0.00018998,2]
[357056177,1743661840570,-505.07424943,0.00018998,2]
[357056178,1743661840580,-371.11,0.00018998,2]
[357056179,1743661840589,-612.56525237,0.00018998,2]
[357056180,1743661840599,-515.42858823,0.00018998,2]
[357056181,1743661840608,-519.43162386,0.00018998,2]
[357056182,1743661840617,-511.58260141,0.00018998,2]
[357056183,1743661840627,-151.0,0.00018998,2]
[357056184,1743661840636,-151.0,0.00018998,2]
[357056185,1743661840646,-500.0,0.00018998,2]
[357056186,1743661840657,-151.0,0.00018998,2]
[357056187,1743661840668,-151.0,0.00018998,2]
[357056188,1743661840678,-151.0,0.00018998,2]
[357056189,1743661840687,-151.0,0.00018998,2]
[357056190,1743661840697,-151.0,0.00018998,2]
[357056191,1743661840711,-507.51953057,0.00018998,2]
[357056192,1743661840721,-176.402131,0.00018998,2]
[357056193,1743661840731,-500.0,0.00018998,2]
[357056194,1743661840741,-350.69957757,0.00018998,2]
[357056195,1743661840751,-500.0,0.00018998,2]
[357056196,1743661840760,-500.0,0.00018998,2]
[357056197,1743661840770,-538.26942688,0.00018998,2]
[357056198,1743661840779,-533.61604109,0.00018998,2]
[357056199,1743661840789,-522.06,0.00018998,2]
[357056200,1743661840799,-510.23405262,0.00018998,2]
[357056201,1743661840808,-508.87617348,0.00018998,2]
[357056202,1743661840818,-505.99114529,0.00018998,2]
[357056203,1743661840828,-151.0,0.00018998,2]
[357056204,1743661840838,-151.0,0.00018998,2]
[357056205,1743661840847,-151.0,0.00018998,2]
[357056206,1743661840860,-151.0,0.00018998,2]
[357056207,1743661840871,-293.23082,0.00018998,2]
[357056208,1743661840880,-513.08178184,0.00018998,2]
[357056209,1743661840890,-521.845001,0.00018998,2]
[357056210,1743661840901,-151.0,0.00018998,2]
[357056211,1743661840911,-151.0,0.00018998,2]
[357056212,1743661840920,-151.59495,0.00018998,2]
[357056213,1743661840930,-505.26444938,0.00018998,2]
[357056214,1743661840939,-502.75013544,0.00018998,2]
[357056215,1743661840949,-503.89043799,0.00018999,2]
[357056216,1743661840958,-503.08287312,0.00018999,2]
[357056217,1743661840967,-502.00611792,0.00018999,2]
[357056219,1743661840977,-501.94352515,0.00018999,2]
[357056221,1743661840987,-505.48373472,0.00018999,2]
[357056223,1743661840996,-502.85140961,0.00018999,2]
[357056225,1743661841006,-501.6023469,0.00018999,2]
[357056227,1743661841015,-501.62061359,0.00018999,2]
[357056229,1743661841025,-500.0,0.00018999,2]
[357056230,1743661841035,-500.52858031,0.00018999,2]
[357056231,1743661841045,-500.55750123,0.00018999,2]
[357056232,1743661841054,-500.0,0.00018999,2]
[357056233,1743661841064,-500.0,0.00018999,2]
[357056234,1743661841075,-505.46135965,0.00018999,2]
[357056235,1743661841085,-500.0,0.00018999,2]
[357056236,1743661841094,-500.67119299,0.00018999,2]
[357056237,1743661841104,-500.0,0.00018999,2]
[357056238,1743661841114,-532.33194084,0.00018999,2]
[357056239,1743661841123,-500.0,0.00018999,2]
[357056240,1743661841134,-501.95989609,0.00018999,2]
[357056241,1743661841143,-501.9461307,0.00018999,2]
[357056242,1743661841153,-500.93196224,0.00018999,2]
[357056243,1743661841311,-500.0,0.00018999,2]
[357056244,1743661841322,-503.03741674,0.00018999,2]
[357056245,1743661841332,-501.62554606,0.00018999,2]
[357056246,1743661841341,-500.0,0.00018999,2]
[357056247,1743661841350,-502.0263463,0.00018999,2]
[357056248,1743661841360,-304.98263042,0.00018999,2]
[357056249,1743661841369,-500.0,0.00018999,2]
[357056250,1743661841378,-500.0,0.00018999,2]
[357056251,1743661841387,-500.0,0.00018999,2]
[357056252,1743661841397,-500.0,0.00018999,2]
[357056253,1743661841406,-500.0,0.00018999,2]
[357056254,1743661841415,-500.0,0.00018999,2]
[357056255,1743661841425,-500.0,0.00018999,2]
[357056256,1743661841434,-500.0,0.00018999,2]
[357056257,1743661841444,-500.0,0.00018999,2]
[357056258,1743661841453,-500.0,0.00018999,2]
[357056259,1743661841462,-500.0,0.00018999,2]
[357056260,1743661841471,-500.0,0.00018999,2]
[357056261,1743661841481,-500.0,0.00018999,2]
[357056262,1743661841491,-500.0,0.00018999,2]
[357056263,1743661841500,-500.0,0.00018999,2]
[357056264,1743661841509,-152.05624,0.00018999,2]
[357056265,1743661841518,-500.0,0.00018999,2]
[357056266,1743661841527,-151.0,0.00018999,2]
[357056267,1743661841537,-151.0,0.00018999,2]
[357056268,1743661841546,-151.0,0.00018999,2]
[357056269,1743661841556,-151.0,0.00018999,2]
[357056270,1743661841565,-151.0,0.00018999,2]
[357056271,1743661841575,-275.609487,0.00018999,2]
[357056272,1743661841584,-275.609487,0.00018999,2]
[357056273,1743661841593,-275.609487,0.00018999,2]
[357056274,1743661841602,-275.609487,0.00018999,2]
[357056275,1743661841611,-275.609487,0.00018999,2]
[357056276,1743661841621,-275.609487,0.00018999,2]
[357056277,1743661841630,-275.609487,0.00018999,2]
[357056278,1743661841639,-275.609487,0.00018999,2]
[357056279,1743661841648,-151.0,0.00018999,2]
[357056280,1743661841657,-151.0,0.00018999,2]
[357056281,1743661841666,-158.988133,0.00018999,2]
[357056282,1743661841675,-546.10055,0.00018999,2]
[357056283,1743661841684,-546.10055,0.00018999,2]
[357056284,1743661841694,-546.10055,0.00018999,2]
[357056285,1743661841703,-546.10055,0.00018999,2]
[357056286,1743661841712,-546.10055,0.00018999,2]
[357056287,1743661841722,-546.10055,0.00018999,2]
[357056288,1743661841731,-151.0,0.00018999,2]
[357056289,1743661841741,-151.0,0.00018999,2]
[357056290,1743661841751,-190.42175,0.00018999,2]
[357056291,1743661841760,-151.0,0.00018999,2]
[357056292,1743661841770,-151.0,0.00018999,2]
[357056293,1743661841780,-151.0,0.00018999,2]
[357056294,1743661841790,-501.83857914,0.000192,2]
[357056295,1743661841799,-500.0,0.000192,2]
[357056296,1743661841808,-500.0,0.000192,2]
[357056297,1743661841818,-503.04356406,0.000192,2]
[357056298,1743661841828,-500.0,0.000192,2]
[357056299,1743661841837,-500.0,0.000192,2]
[357056300,1743661841846,-500.0,0.000192,2]
[357056301,1743661841856,-500.0,0.000192,2]
[357056302,1743661841869,-338.82195444,0.00019219,2]
[357056303,1743661841885,-161.84312374,0.00019219,2]
[357056304,1743661841894,-133.23090682,0.00019219,2]
[357056305,1743661841970,-366.76909318,0.00019219,2]
[357056306,1743661841980,-174.38190682,0.00019231,2]
[357056319,1743661896631,152.7,0.000249,31]
[357056320,1743661896679,152.7,0.000249,31]
[357056321,1743661896724,152.7,0.000249,31]
[357056322,1743661896790,152.7,0.000249,31]
[357056323,1743661896841,152.7,0.000249,31]
[357056325,1743661896922,152.7,0.000249,31]
[357056326,1743661896964,152.7,0.000249,31]
[357056327,1743661897032,152.7,0.000249,31]
[357056331,1743662500317,152.72,0.000249,31]
[357056332,1743662500378,152.72,0.000249,31]
[357056333,1743662500435,152.72,0.000249,31]
[357056334,1743662500499,152.72,0.000249,31]
[357056335,1743662500603,152.72,0.000249,31]
[357056336,1743662500651,152.72,0.000249,31]
[357056337,1743662500724,152.72,0.000249,31]
[357056343,1743662905750,250.27,0.00025,30]
[357056350,1743663003180,1011.4,0.00014,2]
[357056359,1743663032826,-164.618524,0.00018272,2]
[357056360,1743663032837,-3088.88011033,0.000189,2]
[357056361,1743663032847,-600.0,0.000189,2]
[357056362,1743663032857,-300.0,0.00018996,2]
[357056363,1743663032866,-507.53076235,0.00018997,2]
[357056364,1743663032876,-500.0,0.00018997,2]
[357056365,1743663032886,-500.0,0.00018997,2]
[357056366,1743663032897,-500.0,0.00018997,2]
[357056367,1743663032907,-539.64010365,0.00018997,2]
[357056368,1743663032917,-536.29284589,0.00018997,2]
[357056369,1743663032927,-584.96470569,0.00018997,2]
[357056370,1743663032937,-500.0,0.00018997,2]
[357056371,1743663032948,-536.95089088,0.00018997,2]
[357056372,1743663032958,-500.0,0.00018997,2]
[357056373,1743663032968,-135.24083677,0.00018997,2]
[357056417,1743663043951,-500.0,0.00018996,2]
[357056418,1743663043962,-130.85601477,0.00018997,2]
[357056419,1743663043971,-500.0,0.00018997,2]
[357056420,1743663043981,-520.20254668,0.00018997,2]
[357056421,1743663043991,-500.0,0.00018997,2]
[357056422,1743663044000,-366.6766531,0.00018997,2]
[357056423,1743663044010,-20.02388893,0.00018997,2]
[357056449,1743663046950,-510.7,0.00018996,2]
[357056450,1743663046961,-493.33669244,0.00018997,2]
[357056451,1743663046971,-521.10501818,0.00018997,2]
[357056452,1743663046981,-21.78983077,0.00018997,2]
[357056453,1743663047089,-478.21016923,0.00018997,2]
[357056454,1743663047099,-529.44421462,0.00018997,2]
[357056455,1743663047109,-529.39482691,0.00018997,2]
[357056456,1743663047119,-519.32170555,0.00018997,2]
[357056457,1743663047129,-500.0,0.00018997,2]
[357056458,1743663047139,-204.01183387,0.00018997,2]
[357057198,1743663103270,152.73,0.000249,31]
[357057199,1743663103354,152.73,0.000249,31]
[357057200,1743663103416,152.73,0.000249,31]
[357057201,1743663103494,152.73,0.000249,31]
[357057202,1743663103548,152.73,0.000249,31]
[357057203,1743663103610,152.73,0.000249,31]
[357058228,1743663706224,152.74,0.000249,31]
[357058229,1743663706273,152.74,0.000249,31]
[357058230,1743663706393,152.74,0.000249,31]
[357058231,1743663706452,152.74,0.000249,31]
[357058232,1743663706513,152.74,0.000249,31]
[357058310,1743664232119,-164.618525,0.00018398,2]
[357058311,1743664232130,-500.0,0.00018996,2]
[357058312,1743664232139,-500.0,0.00018996,2]
[357058313,1743664232149,-12.37630447,0.00018996,2]
[357058341,1743664240364,-487.62369553,0.00018996,2]
[357058342,1743664240374,-300.0,0.00018996,2]
[357058343,1743664240384,-505.59627892,0.00018997,2]
[357058344,1743664240394,-312.12067765,0.00018997,2]
[357058371,1743664246174,-187.87932235,0.00018997,2]
[357058372,1743664246184,-505.78768838,0.00018997,2]
[357058373,1743664246194,-137.03298927,0.00018997,2]
[357058374,1743664309674,152.74,0.000249,31]
[357058375,1743664309731,152.74,0.000249,31]
[357058376,1743664309797,152.74,0.000249,31]
[357058377,1743664309865,152.74,0.000249,31]
[357058378,1743664309925,152.74,0.000249,31]
[357058456,1743664912498,152.76,0.000249,31]
[357058457,1743664912550,152.76,0.000249,31]
[357058458,1743664912611,152.76,0.000249,31]
[357058459,1743664912682,152.76,0.000249,31]
[357058599,1743665432306,-438.75060735,0.00018891,2]
[357058600,1743665432433,-497.19086489,0.00018891,2]
[357058613,1743665438043,-727.77378443,0.00018891,2]
[357058614,1743665438055,-330.61406804,0.00018891,2]
[357058615,1743665438065,-160.0,0.00018989,2]
[357058616,1743665438075,-160.0,0.00018996,2]
[357058617,1743665438084,-162.4473576,0.00018996,2]
[357058618,1743665438097,-137.5526424,0.00018996,2]
[357058619,1743665438107,-224.7373776,0.00018997,2]
[357058637,1743665440486,-775.2626224,0.00018997,2]
[357058638,1743665440496,-155.0,0.00018997,2]
[357058639,1743665440505,-162.27781983,0.00018997,2]
[357058640,1743665440514,-369.07994622,0.00018997,2]
[357058641,1743665440524,-233.07474895,0.00018997,2]
[357058642,1743665440533,-192.5366991,0.0001905,2]
[357058643,1743665440543,-151.0,0.0001923,2]
[357058645,1743665440553,-500.0,0.00019267,2]
[357058647,1743665440562,-500.0,0.00019267,2]
[357058648,1743665440571,-217.11305953,0.00019267,2]
[357058649,1743665440583,-282.88694047,0.00019267,2]
[357058650,1743665440592,-500.0,0.00019267,2]
[357058651,1743665440601,-500.0,0.00019267,2]
[357058652,1743665440611,-500.0,0.00019267,2]
[357058653,1743665440620,-500.0,0.00019267,2]
[357058654,1743665440633,-500.0,0.00019267,2]
[357058655,1743665440642,-500.0,0.00019267,2]
[357058656,1743665440652,-500.0,0.00019267,2]
[357058657,1743665440661,-500.0,0.00019267,2]
[357058658,1743665440671,-360.15664026,0.00019267,2]
[357058672,1743665443274,-139.84335974,0.00019267,2]
[357058673,1743665443285,-680.68,0.00019267,2]
[357058674,1743665443295,-500.0,0.00019267,2]
[357058675,1743665443305,-500.0,0.00019267,2]
[357058676,1743665443314,-500.0,0.00019267,2]
[357058677,1743665443324,-500.0,0.00019267,2]
[357058678,1743665443334,-592.39514064,0.00019267,2]
[357058679,1743665443344,-505.56552491,0.00019267,2]
[357058680,1743665443354,-500.0,0.00019267,2]
[357058681,1743665443364,-500.0,0.00019267,2]
[357058682,1743665443374,-500.0,0.00019267,2]
[357058691,1743665443527,-336.79193148,0.00019267,2]
[357058693,1743665443559,-500.0,0.00019267,2]
[357058694,1743665443570,-287.82685563,0.00019267,2]
[357058695,1743665443582,-212.17314437,0.00019267,2]
[357058696,1743665443592,-500.0,0.00019267,2]
[357058697,1743665443603,-500.0,0.00019267,2]
[357058698,1743665443613,-614.9,0.00019268,2]
[357058699,1743665443623,-500.0,0.00019268,2]
[357058700,1743665443632,-500.0,0.00019268,2]
[357058701,1743665443642,-500.0,0.00019268,2]
[357058702,1743665443651,-507.78,0.00019268,2]
[357058703,1743665443661,-500.0,0.00019268,2]
[357058704,1743665443671,-510.83026149,0.00019268,2]
[357058705,1743665443680,-500.0,0.00019268,2]
[357058706,1743665443690,-500.0,0.00019268,2]
[357058707,1743665443700,-270.23,0.00019268,2]
[357058708,1743665443709,-341.36,0.00019268,2]
[357058709,1743665443719,-540.75,0.00019268,2]
[357058710,1743665443729,-504.26,0.00019268,2]
[357058711,1743665443738,-514.74,0.00019268,2]
[357058712,1743665443748,-500.0,0.00019268,2]
[357058713,1743665443757,-500.0,0.00019268,2]
[357058714,1743665443766,-490.25705535,0.00019268,2]
[357058715,1743665443776,-500.0,0.00019268,2]
[357058716,1743665443786,-500.0,0.00019268,2]
[357058717,1743665443795,-500.0,0.00019268,2]
[357058719,1743665443805,-395.49889174,0.00019268,2]
[357058721,1743665443817,-104.50110826,0.00019268,2]
[357058722,1743665443826,-500.0,0.00019268,2]
[357058723,1743665443835,-369.04988762,0.00019269,2]